{"text_format":"3","workbook":"xlsx","n_sheets":2,"sheets":["Įrangos atsargos","Parametrai"],"not_rendered":{"defined_names":4},"read":"whole","date_system":"1900"}

{"sheet":"Įrangos atsargos","index":0,"n_rows":35,"n_cols":6,"rows_kept":35,"merged":[[0,1,2,2],[0,4,0,5]]}
[]
[{"$nulls":4},"Paryškinti prekes, kurios yra senesnės nei:"]
[{"$nulls":4},4]
[]
[null,"ĮRANGOS ID","PREKĖS PAVADINIMAS","PRISKIRTA","IŠDAVIMO DATA","PREKĖS AMŽIUS"]
[null,"ITEM0001","kėdė","1 darbuotojas",{"$f":"TODAY()-25","v":"2012-12-03"},{"$f":"IF(lntĮrangosAtsargos[[#This Row],[IŠDAVIMO DATA]]<>\"\",TODAY()-lntĮrangosAtsargos[[#This Row],[IŠDAVIMO DATA]],\"\")","v":{"v":25,"d":"25 Dienos"}}]
[null,"ITEM0002","lazerinis spausdintuvas","2 darbuotojas",{"$f":"TODAY()-479","v":"2011-09-06"},{"$f":"IF(lntĮrangosAtsargos[[#This Row],[IŠDAVIMO DATA]]<>\"\",TODAY()-lntĮrangosAtsargos[[#This Row],[IŠDAVIMO DATA]],\"\")","v":{"v":479,"d":"479 Dienos"}}]
[null,"ITEM0003","skaitytuvas","3 darbuotojas",{"$f":"TODAY()-177","v":"2012-07-04"},{"$f":"IF(lntĮrangosAtsargos[[#This Row],[IŠDAVIMO DATA]]<>\"\",TODAY()-lntĮrangosAtsargos[[#This Row],[IŠDAVIMO DATA]],\"\")","v":{"v":177,"d":"177 Dienos"}}]
[null,"ITEM0004","lazerinis spausdintuvas","7 darbuotojas",{"$f":"TODAY()-18","v":"2012-12-10"},{"$f":"IF(lntĮrangosAtsargos[[#This Row],[IŠDAVIMO DATA]]<>\"\",TODAY()-lntĮrangosAtsargos[[#This Row],[IŠDAVIMO DATA]],\"\")","v":{"v":18,"d":"18 Dienos"}}]
[null,"ITEM0005","kavavirė","20 darbuotojas",{"$f":"TODAY()-227","v":"2012-05-15"},{"$f":"IF(lntĮrangosAtsargos[[#This Row],[IŠDAVIMO DATA]]<>\"\",TODAY()-lntĮrangosAtsargos[[#This Row],[IŠDAVIMO DATA]],\"\")","v":{"v":227,"d":"227 Dienos"}}]
[null,"ITEM0006","skaitytuvas","14 darbuotojas",{"$f":"TODAY()-50","v":"2012-11-08"},{"$f":"IF(lntĮrangosAtsargos[[#This Row],[IŠDAVIMO DATA]]<>\"\",TODAY()-lntĮrangosAtsargos[[#This Row],[IŠDAVIMO DATA]],\"\")","v":{"v":50,"d":"50 Dienos"}}]
[null,"ITEM0007","stalas","4 darbuotojas",{"$f":"TODAY()-120","v":"2012-08-30"},{"$f":"IF(lntĮrangosAtsargos[[#This Row],[IŠDAVIMO DATA]]<>\"\",TODAY()-lntĮrangosAtsargos[[#This Row],[IŠDAVIMO DATA]],\"\")","v":{"v":120,"d":"120 Dienos"}}]
[null,"ITEM0008","kopijavimo aparatas","12 darbuotojas",{"$f":"TODAY()-499","v":"2011-08-17"},{"$f":"IF(lntĮrangosAtsargos[[#This Row],[IŠDAVIMO DATA]]<>\"\",TODAY()-lntĮrangosAtsargos[[#This Row],[IŠDAVIMO DATA]],\"\")","v":{"v":499,"d":"499 Dienos"}}]
[null,"ITEM0009","papildomas monitorius","8 darbuotojas",{"$f":"TODAY()-30","v":"2012-11-28"},{"$f":"IF(lntĮrangosAtsargos[[#This Row],[IŠDAVIMO DATA]]<>\"\",TODAY()-lntĮrangosAtsargos[[#This Row],[IŠDAVIMO DATA]],\"\")","v":{"v":30,"d":"30 Dienos"}}]
[null,"ITEM0010","interaktyvioji lenta","19 darbuotojas",{"$f":"TODAY()-50","v":"2012-11-08"},{"$f":"IF(lntĮrangosAtsargos[[#This Row],[IŠDAVIMO DATA]]<>\"\",TODAY()-lntĮrangosAtsargos[[#This Row],[IŠDAVIMO DATA]],\"\")","v":{"v":50,"d":"50 Dienos"}}]
[null,"ITEM0011","kopijavimo aparatas","12 darbuotojas",{"$f":"TODAY()-450","v":"2011-10-05"},{"$f":"IF(lntĮrangosAtsargos[[#This Row],[IŠDAVIMO DATA]]<>\"\",TODAY()-lntĮrangosAtsargos[[#This Row],[IŠDAVIMO DATA]],\"\")","v":{"v":450,"d":"450 Dienos"}}]
[null,"ITEM0012","pieštukinė","18 darbuotojas",{"$f":"TODAY()-420","v":"2011-11-04"},{"$f":"IF(lntĮrangosAtsargos[[#This Row],[IŠDAVIMO DATA]]<>\"\",TODAY()-lntĮrangosAtsargos[[#This Row],[IŠDAVIMO DATA]],\"\")","v":{"v":420,"d":"420 Dienos"}}]
[null,"ITEM0013","papildomas monitorius","8 darbuotojas",{"$f":"TODAY()-250","v":"2012-04-22"},{"$f":"IF(lntĮrangosAtsargos[[#This Row],[IŠDAVIMO DATA]]<>\"\",TODAY()-lntĮrangosAtsargos[[#This Row],[IŠDAVIMO DATA]],\"\")","v":{"v":250,"d":"250 Dienos"}}]
[null,"ITEM0014","kavavirė","9 darbuotojas",{"$f":"TODAY()-45","v":"2012-11-13"},{"$f":"IF(lntĮrangosAtsargos[[#This Row],[IŠDAVIMO DATA]]<>\"\",TODAY()-lntĮrangosAtsargos[[#This Row],[IŠDAVIMO DATA]],\"\")","v":{"v":45,"d":"45 Dienos"}}]
[null,"ITEM0015","pieštukinė","13 darbuotojas",{"$f":"TODAY()-502","v":"2011-08-14"},{"$f":"IF(lntĮrangosAtsargos[[#This Row],[IŠDAVIMO DATA]]<>\"\",TODAY()-lntĮrangosAtsargos[[#This Row],[IŠDAVIMO DATA]],\"\")","v":{"v":502,"d":"502 Dienos"}}]
[null,"ITEM0016","skaitytuvas","1 darbuotojas",{"$f":"TODAY()-350","v":"2012-01-13"},{"$f":"IF(lntĮrangosAtsargos[[#This Row],[IŠDAVIMO DATA]]<>\"\",TODAY()-lntĮrangosAtsargos[[#This Row],[IŠDAVIMO DATA]],\"\")","v":{"v":350,"d":"350 Dienos"}}]
[null,"ITEM0017","kopijavimo aparatas","19 darbuotojas",{"$f":"TODAY()-125","v":"2012-08-25"},{"$f":"IF(lntĮrangosAtsargos[[#This Row],[IŠDAVIMO DATA]]<>\"\",TODAY()-lntĮrangosAtsargos[[#This Row],[IŠDAVIMO DATA]],\"\")","v":{"v":125,"d":"125 Dienos"}}]
[null,"ITEM0018","interaktyvioji lenta","15 darbuotojas",{"$f":"TODAY()-90","v":"2012-09-29"},{"$f":"IF(lntĮrangosAtsargos[[#This Row],[IŠDAVIMO DATA]]<>\"\",TODAY()-lntĮrangosAtsargos[[#This Row],[IŠDAVIMO DATA]],\"\")","v":{"v":90,"d":"90 Dienos"}}]
[null,"ITEM0019","kėdė","16 darbuotojas",{"$f":"TODAY()-730","v":"2010-12-29"},{"$f":"IF(lntĮrangosAtsargos[[#This Row],[IŠDAVIMO DATA]]<>\"\",TODAY()-lntĮrangosAtsargos[[#This Row],[IŠDAVIMO DATA]],\"\")","v":{"v":730,"d":"730 Dienos"}}]
[null,"ITEM0020","dulkių šluostė (1 rinkinys)","3 darbuotojas",{"$f":"TODAY()-540","v":"2011-07-07"},{"$f":"IF(lntĮrangosAtsargos[[#This Row],[IŠDAVIMO DATA]]<>\"\",TODAY()-lntĮrangosAtsargos[[#This Row],[IŠDAVIMO DATA]],\"\")","v":{"v":540,"d":"540 Dienos"}}]
[null,"ITEM0021","lazerinis spausdintuvas","7 darbuotojas",{"$f":"TODAY()-18","v":"2012-12-10"},{"$f":"IF(lntĮrangosAtsargos[[#This Row],[IŠDAVIMO DATA]]<>\"\",TODAY()-lntĮrangosAtsargos[[#This Row],[IŠDAVIMO DATA]],\"\")","v":{"v":18,"d":"18 Dienos"}}]
[null,"ITEM0022","nešiojamasis kompiuteris","8 darbuotojas",{"$f":"TODAY()-283","v":"2012-03-20"},{"$f":"IF(lntĮrangosAtsargos[[#This Row],[IŠDAVIMO DATA]]<>\"\",TODAY()-lntĮrangosAtsargos[[#This Row],[IŠDAVIMO DATA]],\"\")","v":{"v":283,"d":"283 Dienos"}}]
[null,"ITEM0023","pieštukinė","9 darbuotojas",{"$f":"TODAY()-479","v":"2011-09-06"},{"$f":"IF(lntĮrangosAtsargos[[#This Row],[IŠDAVIMO DATA]]<>\"\",TODAY()-lntĮrangosAtsargos[[#This Row],[IŠDAVIMO DATA]],\"\")","v":{"v":479,"d":"479 Dienos"}}]
[null,"ITEM0024","lazerinis spausdintuvas","19 darbuotojas",{"$f":"TODAY()-355","v":"2012-01-08"},{"$f":"IF(lntĮrangosAtsargos[[#This Row],[IŠDAVIMO DATA]]<>\"\",TODAY()-lntĮrangosAtsargos[[#This Row],[IŠDAVIMO DATA]],\"\")","v":{"v":355,"d":"355 Dienos"}}]
[null,"ITEM0025","stalas","7 darbuotojas",{"$f":"TODAY()-28","v":"2012-11-30"},{"$f":"IF(lntĮrangosAtsargos[[#This Row],[IŠDAVIMO DATA]]<>\"\",TODAY()-lntĮrangosAtsargos[[#This Row],[IŠDAVIMO DATA]],\"\")","v":{"v":28,"d":"28 Dienos"}}]
[null,"ITEM0026","interaktyvioji lenta","8 darbuotojas",{"$f":"TODAY()-28","v":"2012-11-30"},{"$f":"IF(lntĮrangosAtsargos[[#This Row],[IŠDAVIMO DATA]]<>\"\",TODAY()-lntĮrangosAtsargos[[#This Row],[IŠDAVIMO DATA]],\"\")","v":{"v":28,"d":"28 Dienos"}}]
[null,"ITEM0027","nešiojamasis kompiuteris","19 darbuotojas",{"$f":"TODAY()-736","v":"2010-12-23"},{"$f":"IF(lntĮrangosAtsargos[[#This Row],[IŠDAVIMO DATA]]<>\"\",TODAY()-lntĮrangosAtsargos[[#This Row],[IŠDAVIMO DATA]],\"\")","v":{"v":736,"d":"736 Dienos"}}]
[null,"ITEM0028","stalas","12 darbuotojas",{"$f":"TODAY()-68","v":"2012-10-21"},{"$f":"IF(lntĮrangosAtsargos[[#This Row],[IŠDAVIMO DATA]]<>\"\",TODAY()-lntĮrangosAtsargos[[#This Row],[IŠDAVIMO DATA]],\"\")","v":{"v":68,"d":"68 Dienos"}}]
[null,"ITEM0029","skaitytuvas","14 darbuotojas",{"$f":"TODAY()-67","v":"2012-10-22"},{"$f":"IF(lntĮrangosAtsargos[[#This Row],[IŠDAVIMO DATA]]<>\"\",TODAY()-lntĮrangosAtsargos[[#This Row],[IŠDAVIMO DATA]],\"\")","v":{"v":67,"d":"67 Dienos"}}]
[null,"ITEM0030","kavavirė","3 darbuotojas",{"$f":"TODAY()-149","v":"2012-08-01"},{"$f":"IF(lntĮrangosAtsargos[[#This Row],[IŠDAVIMO DATA]]<>\"\",TODAY()-lntĮrangosAtsargos[[#This Row],[IŠDAVIMO DATA]],\"\")","v":{"v":149,"d":"149 Dienos"}}]

{"sheet":"Parametrai","index":1,"n_rows":23,"n_cols":4,"rows_kept":23}
[]
[]
[null,"DARBUOTOJAI",null,"PREKĖS"]
[null,"1 darbuotojas",null,"kėdė"]
[null,"2 darbuotojas",null,"kavavirė"]
[null,"3 darbuotojas",null,"kopijavimo aparatas"]
[null,"4 darbuotojas",null,"stalinis kompiuteris"]
[null,"5 darbuotojas",null,"dulkių šluostė (1 rinkinys)"]
[null,"6 darbuotojas",null,"papildomas monitorius"]
[null,"7 darbuotojas",null,"rašalinis spausdintuvas"]
[null,"8 darbuotojas",null,"nešiojamasis kompiuteris"]
[null,"9 darbuotojas",null,"lazerinis spausdintuvas"]
[null,"10 darbuotojas",null,"žymiklis (3 pakuotės)"]
[null,"11 darbuotojas",null,"skaitytuvas"]
[null,"12 darbuotojas",null,"pieštukinė"]
[null,"13 darbuotojas",null,"stalas"]
[null,"14 darbuotojas",null,"USB atmintinė"]
[null,"15 darbuotojas",null,"interaktyvioji lenta"]
[null,"16 darbuotojas"]
[null,"17 darbuotojas"]
[null,"18 darbuotojas"]
[null,"19 darbuotojas"]
[null,"20 darbuotojas"]